[Event "Titled Tuesday Blitz August 16 Late 2022"]
[White "Danielyan, Vahe"]
[Black "Paravyan, David"]
[WhiteFideId "13304828"]
[BlackFideId "4194985"]
[WhiteElo "2421"]
[BlackElo "2569"]
[Result "0-1"]
[Round "01"]
[TimeControl "180+1"]
[Date "2022.08.16"]
[WhiteClock "0:00:05"]
[BlackClock "0:00:07"]

1. e4 {[%clk 0:02:59]}  e5 {[%clk 0:02:58]} 2. Nf3 {[%clk 0:02:58]}  Nf6 {[%clk 0:02:58]} 3. Nc3 {[%clk 0:02:57]}  Nc6 {[%clk 0:02:58]} 4. Bb5 {[%clk 0:02:57]}  Nd4 {[%clk 0:02:58]} 5. O-O {[%clk 0:02:57]}  c6 {[%clk 0:02:56]} 6. Bc4 {[%clk 0:02:52]}  Bd6 {[%clk 0:02:55]} 7. d3 {[%clk 0:02:50]}  Nxf3+ {[%clk 0:02:46]} 8. Qxf3 {[%clk 0:02:50]}  O-O {[%clk 0:02:45]} 9. Bg5 {[%clk 0:02:48]}  Be7 {[%clk 0:02:44]} 10. Bb3 {[%clk 0:02:45]}  d6 {[%clk 0:02:44]} 11. h3 {[%clk 0:02:43]}  a5 {[%clk 0:02:42]} 12. a4 {[%clk 0:02:29]}  Be6 {[%clk 0:02:42]} 13. Bxe6 {[%clk 0:02:27]}  fxe6 {[%clk 0:02:43]} 14. Bxf6 {[%clk 0:02:26]}  Rxf6 {[%clk 0:02:37]} 15. Qe2 {[%clk 0:02:25]}  d5 {[%clk 0:02:37]} 16. Nd1 {[%clk 0:02:24]}  Bd6 {[%clk 0:02:31]} 17. Ne3 {[%clk 0:02:23]}  Qb6 {[%clk 0:02:31]} 18. c3 {[%clk 0:02:16]}  Raf8 {[%clk 0:02:31]} 19. Ng4 {[%clk 0:02:01]}  R6f7 {[%clk 0:02:22]} 20. Kh1 {[%clk 0:01:13]}  h5 {[%clk 0:02:15]} 21. Ne3 {[%clk 0:01:05]}  Bc5 {[%clk 0:02:13]} 22. Kg1 {[%clk 0:00:15]}  Rxf2 {[%clk 0:02:12]} 23. Rxf2 {[%clk 0:00:16]}  Bxe3 {[%clk 0:02:11]} 24. Rf1 {[%clk 0:00:16]}  h4 {[%clk 0:01:44]} 25. d4 {[%clk 0:00:09]}  exd4 {[%clk 0:01:42]} 26. Kh1 {[%clk 0:00:04]}  Rxf2 {[%clk 0:01:38]} 27. Rxf2 {[%clk 0:00:05]}  Bxf2 {[%clk 0:00:54]} 28. Qxf2 {[%clk 0:00:06]}  Qd8 {[%clk 0:00:55]} 29. exd5 {[%clk 0:00:03]}  exd5 {[%clk 0:00:44]} 30. Qxd4 {[%clk 0:00:02]}  Qf6 {[%clk 0:00:45]} 31. Qb6 {[%clk 0:00:02]}  Qf1+ {[%clk 0:00:45]} 32. Kh2 {[%clk 0:00:02]}  Qf4+ {[%clk 0:00:46]} 33. Kh1 {[%clk 0:00:02]}  Qxa4 {[%clk 0:00:45]} 34. Qxb7 {[%clk 0:00:02]}  Qc4 {[%clk 0:00:32]} 35. Qc8+ {[%clk 0:00:02]}  Kh7 {[%clk 0:00:33]} 36. Qf5+ {[%clk 0:00:02]}  Kh6 {[%clk 0:00:34]} 37. Qe6+ {[%clk 0:00:02]}  g6 {[%clk 0:00:34]} 38. Qe7 {[%clk 0:00:02]}  Qf1+ {[%clk 0:00:33]} 39. Kh2 {[%clk 0:00:02]}  Qf4+ {[%clk 0:00:34]} 40. Kh1 {[%clk 0:00:03]}  a4 {[%clk 0:00:32]} 41. Qa7 {[%clk 0:00:02]}  Qc1+ {[%clk 0:00:31]} 42. Kh2 {[%clk 0:00:03]}  Qxb2 {[%clk 0:00:30]} 43. Qe3+ {[%clk 0:00:03]}  Kh5 {[%clk 0:00:27]} 44. Qf3+ {[%clk 0:00:03]}  Kg5 {[%clk 0:00:27]} 45. Qe3+ {[%clk 0:00:04]}  Kf6 {[%clk 0:00:27]} 46. Qf4+ {[%clk 0:00:04]}  Ke6 {[%clk 0:00:28]} 47. Qg4+ {[%clk 0:00:04]}  Kd6 {[%clk 0:00:27]} 48. Qxg6+ {[%clk 0:00:04]}  Kc5 {[%clk 0:00:27]} 49. Qf6 {[%clk 0:00:04]}  Qb8+ {[%clk 0:00:26]} 50. Kh1 {[%clk 0:00:03]}  Kc4 {[%clk 0:00:25]} 51. Qf1+ {[%clk 0:00:01]}  Kxc3 {[%clk 0:00:20]} 52. Qc1+ {[%clk 0:00:01]}  Kd3 {[%clk 0:00:20]} 53. Qd1+ {[%clk 0:00:02]}  Ke4 {[%clk 0:00:21]} 54. Qe2+ {[%clk 0:00:02]}  Kd4 {[%clk 0:00:20]} 55. Qd2+ {[%clk 0:00:02]}  Kc5 {[%clk 0:00:21]} 56. Qc3+ {[%clk 0:00:02]}  Kd6 {[%clk 0:00:19]} 57. Qf6+ {[%clk 0:00:02]}  Kc7 {[%clk 0:00:19]} 58. Qf4+ {[%clk 0:00:01]}  Kc8 {[%clk 0:00:19]} 59. Qxa4 {[%clk 0:00:01]}  Qb1+ {[%clk 0:00:18]} 60. Kh2 {[%clk 0:00:02]}  Qb8+ {[%clk 0:00:12]} 61. Kh1 {[%clk 0:00:01]}  Qb1+ {[%clk 0:00:08]} 62. Kh2 {[%clk 0:00:02]}  Kb7 {[%clk 0:00:08]} 63. Qxh4 {[%clk 0:00:01]}  Qf5 {[%clk 0:00:06]} 64. Qe7+ {[%clk 0:00:01]}  Kb6 {[%clk 0:00:06]} 65. h4 {[%clk 0:00:02]}  d4 {[%clk 0:00:05]} 66. Qb4+ {[%clk 0:00:02]}  Kc7 {[%clk 0:00:03]} 67. Qxd4 {[%clk 0:00:03]}  c5 {[%clk 0:00:04]} 68. Qg7+ {[%clk 0:00:03]}  Kb6 {[%clk 0:00:04]} 69. Qh6+ {[%clk 0:00:02]}  Kb5 {[%clk 0:00:04]} 70. Qe3 {[%clk 0:00:03]}  c4 {[%clk 0:00:04]} 71. Kg3 {[%clk 0:00:01]}  Qc8 {[%clk 0:00:02]} 72. Qc3 {[%clk 0:00:01]}  Qg8+ {[%clk 0:00:03]} 73. Kh3 {[%clk 0:00:01]}  Qc8+ {[%clk 0:00:03]} 74. g4 {[%clk 0:00:01]}  Qd7 {[%clk 0:00:03]} 75. Qe5+ {[%clk 0:00:01]}  Kb4 {[%clk 0:00:03]} 76. h5 {[%clk 0:00:02]}  c3 {[%clk 0:00:03]} 77. Qb8+ {[%clk 0:00:02]}  Ka3 {[%clk 0:00:03]} 78. Qa8+ {[%clk 0:00:02]}  Kb2 {[%clk 0:00:03]} 79. Qb8+ {[%clk 0:00:01]}  Kc1 {[%clk 0:00:04]} 80. h6 {[%clk 0:00:01]}  Qh7 {[%clk 0:00:03]} 81. Qf4+ {[%clk 0:00:01]}  Kb2 {[%clk 0:00:04]} 82. Qb4+ {[%clk 0:00:01]}  Kc2 {[%clk 0:00:04]} 83. Qa4+ {[%clk 0:00:01]}  Kd3 {[%clk 0:00:03]} 84. Qb5+ {[%clk 0:00:01]}  Kd2 {[%clk 0:00:03]} 85. Qd5+ {[%clk 0:00:01]}  Kc1 {[%clk 0:00:03]} 86. Qc5 {[%clk 0:00:01]}  Qxh6+ {[%clk 0:00:03]} 87. Kg3 {[%clk 0:00:02]}  Qf6 {[%clk 0:00:02]} 88. g5 {[%clk 0:00:02]}  Qg7 {[%clk 0:00:03]} 89. Qg1+ {[%clk 0:00:01]}  Kb2 {[%clk 0:00:03]} 90. Qb6+ {[%clk 0:00:01]}  Kc2 {[%clk 0:00:04]} 91. g6 {[%clk 0:00:02]}  Qe5+ {[%clk 0:00:04]} 92. Kg4 {[%clk 0:00:02]}  Kd2 {[%clk 0:00:04]} 93. Qd8+ {[%clk 0:00:02]}  Ke1 {[%clk 0:00:04]} 94. Qg5 {[%clk 0:00:02]}  Qe2+ {[%clk 0:00:03]} 95. Kf5 {[%clk 0:00:02]}  Qb5+ {[%clk 0:00:02]} 96. Kf6 {[%clk 0:00:02]}  Qxg5+ {[%clk 0:00:03]} 97. Kxg5 {[%clk 0:00:03]}  c2 {[%clk 0:00:04]} 98. g7 {[%clk 0:00:03]}  c1=Q+ {[%clk 0:00:05]} 99. Kf6 {[%clk 0:00:04]}  Qc4 {[%clk 0:00:05]} 100. Kg6 {[%clk 0:00:04]}  Qg8 {[%clk 0:00:06]} 101. Kh6 {[%clk 0:00:05]}  Kf2 {[%clk 0:00:07]} 0-1


[Site "https://www.chess.com"]

[Event "Titled Tuesday Blitz August 16 Late 2022"]
[White "Dilanyan, Grigor"]
[Black "Pourkashiyan, Atousa"]
[WhiteFideId "13303570"]
[BlackFideId "12502014"]
[WhiteElo "2264"]
[BlackElo "2247"]
[Result "0-1"]
[Round "01"]
[TimeControl "180+1"]
[Date "2022.08.18"]
[WhiteClock "0:00:00"]
[BlackClock "0:00:00"]

1. e4 {[%clk 0:00:00]}  e5 {[%clk 0:00:00]} 2. Nf3 {[%clk 0:00:00]}  Nf6 {[%clk 0:00:00]} 3. Nc3 {[%clk 0:00:00]}  Bb4 {[%clk 0:00:00]} 4. Nxe5 {[%clk 0:00:00]}  O-O {[%clk 0:00:00]} 5. Nd3 {[%clk 0:00:00]}  Bxc3 {[%clk 0:00:00]} 6. dxc3 {[%clk 0:00:00]}  Nxe4 {[%clk 0:00:00]} 7. Be2 {[%clk 0:00:00]}  d5 {[%clk 0:00:00]} 8. O-O {[%clk 0:00:00]}  c6 {[%clk 0:00:00]} 9. Bf3 {[%clk 0:00:00]}  Bf5 {[%clk 0:00:00]} 10. g3 {[%clk 0:00:00]}  Nd7 {[%clk 0:00:00]} 11. Bf4 {[%clk 0:00:00]}  Re8 {[%clk 0:00:00]} 12. Bg2 {[%clk 0:00:00]}  h6 {[%clk 0:00:00]} 13. Be3 {[%clk 0:00:00]}  Ndf6 {[%clk 0:00:00]} 14. a4 {[%clk 0:00:00]}  Nd6 {[%clk 0:00:00]} 15. Bd4 {[%clk 0:00:00]}  Be4 {[%clk 0:00:00]} 16. b4 {[%clk 0:00:00]}  Bxg2 {[%clk 0:00:00]} 17. Kxg2 {[%clk 0:00:00]}  Nfe4 {[%clk 0:00:00]} 18. Qf3 {[%clk 0:00:00]}  Nd2 {[%clk 0:00:00]} 19. Qg4 {[%clk 0:00:00]}  Qg5 {[%clk 0:00:00]} 20. Qxg5 {[%clk 0:00:00]}  hxg5 {[%clk 0:00:00]} 21. Rfe1 {[%clk 0:00:00]}  N2e4 {[%clk 0:00:00]} 22. f3 {[%clk 0:00:00]}  Nf6 {[%clk 0:00:00]} 23. a5 {[%clk 0:00:00]}  Nb5 {[%clk 0:00:00]} 24. Nc5 {[%clk 0:00:00]}  b6 {[%clk 0:00:00]} 25. Nd3 {[%clk 0:00:00]}  g4 {[%clk 0:00:00]} 26. fxg4 {[%clk 0:00:00]}  Nxd4 {[%clk 0:00:00]} 27. cxd4 {[%clk 0:00:00]}  Nxg4 {[%clk 0:00:00]} 28. axb6 {[%clk 0:00:00]}  axb6 {[%clk 0:00:00]} 29. h3 {[%clk 0:00:00]}  Nf6 {[%clk 0:00:00]} 30. Ne5 {[%clk 0:00:00]}  Rxa1 {[%clk 0:00:00]} 31. Rxa1 {[%clk 0:00:00]}  c5 {[%clk 0:00:00]} 32. c3 {[%clk 0:00:00]}  Ne4 {[%clk 0:00:00]} 33. Ra3 {[%clk 0:00:00]}  cxd4 {[%clk 0:00:00]} 34. cxd4 {[%clk 0:00:00]}  Rc8 {[%clk 0:00:00]} 35. Nd7 {[%clk 0:00:00]}  Rc2+ {[%clk 0:00:00]} 36. Kf3 {[%clk 0:00:00]}  b5 {[%clk 0:00:00]} 37. Nc5 {[%clk 0:00:00]}  f5 {[%clk 0:00:00]} 38. g4 {[%clk 0:00:00]}  Rf2+ {[%clk 0:00:00]} 39. Ke3 {[%clk 0:00:00]}  f4+ {[%clk 0:00:00]} 40. Kd3 {[%clk 0:00:00]}  Rf3+ {[%clk 0:00:00]} 41. Ke2 {[%clk 0:00:00]}  Rxa3 {[%clk 0:00:00]} 42. Ne6 {[%clk 0:00:00]}  Re3+ {[%clk 0:00:00]} 0-1


[Site "https://www.chess.com"]

[Event "Titled Tuesday Blitz August 16 Late 2022"]
[White "Espinosa Veloz, Ermes"]
[Black "Floresvillar Gonzalez, Luis Migu"]
[WhiteFideId "3507424"]
[BlackFideId "5100542"]
[WhiteElo "2333"]
[BlackElo "2040"]
[Result "1-0"]
[Round "01"]
[TimeControl "180+1"]
[Date "2022.08.18"]
[WhiteClock "0:00:00"]
[BlackClock "0:00:00"]

1. d4 {[%clk 0:00:00]}  d5 {[%clk 0:00:00]} 2. c4 {[%clk 0:00:00]}  c6 {[%clk 0:00:00]} 3. g3 {[%clk 0:00:00]}  Nf6 {[%clk 0:00:00]} 4. Bg2 {[%clk 0:00:00]}  Bg4 {[%clk 0:00:00]} 5. h3 {[%clk 0:00:00]}  Bf5 {[%clk 0:00:00]} 6. Nc3 {[%clk 0:00:00]}  e6 {[%clk 0:00:00]} 7. Nf3 {[%clk 0:00:00]}  Bd6 {[%clk 0:00:00]} 8. cxd5 {[%clk 0:00:00]}  exd5 {[%clk 0:00:00]} 9. Bf4 {[%clk 0:00:00]}  Bxf4 {[%clk 0:00:00]} 10. gxf4 {[%clk 0:00:00]}  Qb6 {[%clk 0:00:00]} 11. Qd2 {[%clk 0:00:00]}  Nbd7 {[%clk 0:00:00]} 12. Ne5 {[%clk 0:00:00]}  Nxe5 {[%clk 0:00:00]} 13. fxe5 {[%clk 0:00:00]}  Ne4 {[%clk 0:00:00]} 14. Nxe4 {[%clk 0:00:00]}  Bxe4 {[%clk 0:00:00]} 15. Bxe4 {[%clk 0:00:00]}  dxe4 {[%clk 0:00:00]} 16. e3 {[%clk 0:00:00]}  O-O-O {[%clk 0:00:00]} 17. O-O-O {[%clk 0:00:00]}  f6 {[%clk 0:00:00]} 18. exf6 {[%clk 0:00:00]}  gxf6 {[%clk 0:00:00]} 19. Rhg1 {[%clk 0:00:00]}  Rhg8 {[%clk 0:00:00]} 20. Qc2 {[%clk 0:00:00]}  f5 {[%clk 0:00:00]} 21. Qc4 {[%clk 0:00:00]}  Rg6 {[%clk 0:00:00]} 22. Rxg6 {[%clk 0:00:00]}  hxg6 {[%clk 0:00:00]} 23. Qe6+ {[%clk 0:00:00]}  Kb8 {[%clk 0:00:00]} 24. Qxg6 {[%clk 0:00:00]}  Qa5 {[%clk 0:00:00]} 25. Kb1 {[%clk 0:00:00]}  Qd5 {[%clk 0:00:00]} 26. Rc1 {[%clk 0:00:00]}  Rg8 {[%clk 0:00:00]} 27. Qf6 {[%clk 0:00:00]}  Qd7 {[%clk 0:00:00]} 28. Rc5 {[%clk 0:00:00]}  Rg1+ {[%clk 0:00:00]} 29. Kc2 {[%clk 0:00:00]}  Rh1 {[%clk 0:00:00]} 30. Qxf5 {[%clk 0:00:00]}  Qxf5 {[%clk 0:00:00]} 31. Rxf5 {[%clk 0:00:00]}  Rxh3 {[%clk 0:00:00]} 32. Kd2 {[%clk 0:00:00]}  Rh1 {[%clk 0:00:00]} 33. Rf4 {[%clk 0:00:00]}  Rb1 {[%clk 0:00:00]} 34. Kc2 {[%clk 0:00:00]}  Rf1 {[%clk 0:00:00]} 35. Kc3 {[%clk 0:00:00]}  b5 {[%clk 0:00:00]} 36. Rf7 {[%clk 0:00:00]}  a5 {[%clk 0:00:00]} 37. a3 {[%clk 0:00:00]}  Rc1+ {[%clk 0:00:00]} 38. Kd2 {[%clk 0:00:00]}  Rb1 {[%clk 0:00:00]} 39. Kc2 {[%clk 0:00:00]}  Rf1 {[%clk 0:00:00]} 40. Kb3 {[%clk 0:00:00]}  Rb1 {[%clk 0:00:00]} 41. Rf4 {[%clk 0:00:00]}  a4+ {[%clk 0:00:00]} 42. Kc2 {[%clk 0:00:00]}  Rf1 {[%clk 0:00:00]} 43. Rf7 {[%clk 0:00:00]}  Kc8 {[%clk 0:00:00]} 44. Kc3 {[%clk 0:00:00]}  Rc1+ {[%clk 0:00:00]} 45. Kb4 {[%clk 0:00:00]}  Rc2 {[%clk 0:00:00]} 46. Ka5 {[%clk 0:00:00]}  Rxb2 {[%clk 0:00:00]} 47. Kb6 {[%clk 0:00:00]}  b4 {[%clk 0:00:00]} 48. axb4 {[%clk 0:00:00]}  a3 {[%clk 0:00:00]} 49. Kxc6 {[%clk 0:00:00]}  Rc2+ {[%clk 0:00:00]} 50. Kb6 {[%clk 0:00:00]}  a2 {[%clk 0:00:00]} 51. Ra7 {[%clk 0:00:00]}  Rxf2 {[%clk 0:00:00]} 52. d5 {[%clk 0:00:00]}  Rb2 {[%clk 0:00:00]} 53. b5 {[%clk 0:00:00]}  Rd2 {[%clk 0:00:00]} 54. Kc6 {[%clk 0:00:00]}  Rc2+ {[%clk 0:00:00]} 55. Kd6 {[%clk 0:00:00]}  Rb2 {[%clk 0:00:00]} 56. Ke5 {[%clk 0:00:00]}  Kb8 {[%clk 0:00:00]} 57. b6 {[%clk 0:00:00]} 1-0


[Site "https://www.chess.com"]

[Event "Titled Tuesday Blitz August 16 Late 2022"]
[White "Fernandez Hernandez, Gerardo"]
[Black "Gubajdullin, Alexei"]
[WhiteFideId "2207400"]
[BlackFideId "4141202"]
[WhiteElo "2169"]
[BlackElo "2214"]
[Result "0-1"]
[Round "01"]
[TimeControl "180+1"]
[Date "2022.08.18"]
[WhiteClock "0:00:00"]
[BlackClock "0:00:00"]

1. e4 {[%clk 0:00:00]}  c6 {[%clk 0:00:00]} 2. d4 {[%clk 0:00:00]}  d5 {[%clk 0:00:00]} 3. exd5 {[%clk 0:00:00]}  cxd5 {[%clk 0:00:00]} 4. c4 {[%clk 0:00:00]}  Nf6 {[%clk 0:00:00]} 5. Nc3 {[%clk 0:00:00]}  e6 {[%clk 0:00:00]} 6. c5 {[%clk 0:00:00]}  Be7 {[%clk 0:00:00]} 7. Nf3 {[%clk 0:00:00]}  b6 {[%clk 0:00:00]} 8. b4 {[%clk 0:00:00]}  a5 {[%clk 0:00:00]} 9. Na4 {[%clk 0:00:00]}  Nfd7 {[%clk 0:00:00]} 10. a3 {[%clk 0:00:00]}  axb4 {[%clk 0:00:00]} 11. axb4 {[%clk 0:00:00]}  b5 {[%clk 0:00:00]} 12. Bxb5 {[%clk 0:00:00]}  O-O {[%clk 0:00:00]} 13. Bf4 {[%clk 0:00:00]}  Na6 {[%clk 0:00:00]} 14. c6 {[%clk 0:00:00]}  Bxb4+ {[%clk 0:00:00]} 15. Kf1 {[%clk 0:00:00]}  Nb6 {[%clk 0:00:00]} 16. c7 {[%clk 0:00:00]}  Nxc7 {[%clk 0:00:00]} 17. Bc6 {[%clk 0:00:00]}  Ra6 {[%clk 0:00:00]} 18. Qb3 {[%clk 0:00:00]}  Bd6 {[%clk 0:00:00]} 19. Be3 {[%clk 0:00:00]}  Nc4 {[%clk 0:00:00]} 20. g3 {[%clk 0:00:00]}  Rxc6 {[%clk 0:00:00]} 21. Kg2 {[%clk 0:00:00]}  Ba6 {[%clk 0:00:00]} 22. Nc5 {[%clk 0:00:00]}  Nxe3+ {[%clk 0:00:00]} 23. Qxe3 {[%clk 0:00:00]}  Bxc5 {[%clk 0:00:00]} 24. dxc5 {[%clk 0:00:00]}  Qe7 {[%clk 0:00:00]} 25. Rhc1 {[%clk 0:00:00]}  Nb5 {[%clk 0:00:00]} 26. Ne5 {[%clk 0:00:00]}  Bb7 {[%clk 0:00:00]} 27. Nxc6 {[%clk 0:00:00]}  Bxc6 {[%clk 0:00:00]} 28. Rcb1 {[%clk 0:00:00]}  d4+ {[%clk 0:00:00]} 0-1


[Site "https://www.chess.com"]

[Event "Titled Tuesday Blitz August 16 Late 2022"]
[White "Fiedorek, Michal"]
[Black "Csonka, Balazs"]
[WhiteFideId "1199528"]
[BlackFideId "742910"]
[WhiteElo "2242"]
[BlackElo "2495"]
[Result "0-1"]
[Round "01"]
[TimeControl "180+1"]
[Date "2022.08.18"]
[WhiteClock "0:00:00"]
[BlackClock "0:00:00"]

1. e4 {[%clk 0:00:00]}  c5 {[%clk 0:00:00]} 2. Nf3 {[%clk 0:00:00]}  Nc6 {[%clk 0:00:00]} 3. d4 {[%clk 0:00:00]}  cxd4 {[%clk 0:00:00]} 4. Nxd4 {[%clk 0:00:00]}  g6 {[%clk 0:00:00]} 5. c4 {[%clk 0:00:00]}  Nf6 {[%clk 0:00:00]} 6. Nc3 {[%clk 0:00:00]}  d6 {[%clk 0:00:00]} 7. Nc2 {[%clk 0:00:00]}  Bg7 {[%clk 0:00:00]} 8. Be2 {[%clk 0:00:00]}  O-O {[%clk 0:00:00]} 9. O-O {[%clk 0:00:00]}  Be6 {[%clk 0:00:00]} 10. Be3 {[%clk 0:00:00]}  Nd7 {[%clk 0:00:00]} 11. Qd2 {[%clk 0:00:00]}  Nc5 {[%clk 0:00:00]} 12. f3 {[%clk 0:00:00]}  a5 {[%clk 0:00:00]} 13. Rab1 {[%clk 0:00:00]}  a4 {[%clk 0:00:00]} 14. Rfc1 {[%clk 0:00:00]}  Qa5 {[%clk 0:00:00]} 15. Nd4 {[%clk 0:00:00]}  Bxd4 {[%clk 0:00:00]} 16. Bxd4 {[%clk 0:00:00]}  Nxd4 {[%clk 0:00:00]} 17. Qxd4 {[%clk 0:00:00]}  Rfc8 {[%clk 0:00:00]} 18. b4 {[%clk 0:00:00]}  axb3 {[%clk 0:00:00]} 19. axb3 {[%clk 0:00:00]}  Qb4 {[%clk 0:00:00]} 20. Bd1 {[%clk 0:00:00]}  b5 {[%clk 0:00:00]} 21. Nxb5 {[%clk 0:00:00]}  Qe1# {[%clk 0:00:00]} 0-1


[Site "https://www.chess.com"]

[Event "Titled Tuesday Blitz August 16 Late 2022"]
[White "Fiorito, Joaquin"]
[Black "Bashirli, Nail"]
[WhiteFideId "180173"]
[BlackFideId "13406809"]
[WhiteElo "1758"]
[BlackElo "2333"]
[Result "0-1"]
[Round "01"]
[TimeControl "180+1"]
[Date "2022.08.18"]
[WhiteClock "0:00:00"]
[BlackClock "0:00:00"]

1. e4 {[%clk 0:00:00]}  Nf6 {[%clk 0:00:00]} 2. e5 {[%clk 0:00:00]}  Nd5 {[%clk 0:00:00]} 3. d4 {[%clk 0:00:00]}  d6 {[%clk 0:00:00]} 4. c4 {[%clk 0:00:00]}  Nb6 {[%clk 0:00:00]} 5. exd6 {[%clk 0:00:00]}  cxd6 {[%clk 0:00:00]} 6. Nc3 {[%clk 0:00:00]}  g6 {[%clk 0:00:00]} 7. Be3 {[%clk 0:00:00]}  Bg7 {[%clk 0:00:00]} 8. h3 {[%clk 0:00:00]}  O-O {[%clk 0:00:00]} 9. Nf3 {[%clk 0:00:00]}  Nc6 {[%clk 0:00:00]} 10. Be2 {[%clk 0:00:00]}  Bf5 {[%clk 0:00:00]} 11. d5 {[%clk 0:00:00]}  Na5 {[%clk 0:00:00]} 12. a4 {[%clk 0:00:00]}  Naxc4 {[%clk 0:00:00]} 13. Nd4 {[%clk 0:00:00]}  Nxe3 {[%clk 0:00:00]} 14. fxe3 {[%clk 0:00:00]}  Rc8 {[%clk 0:00:00]} 15. O-O {[%clk 0:00:00]}  Qd7 {[%clk 0:00:00]} 16. Bb5 {[%clk 0:00:00]}  Qc7 {[%clk 0:00:00]} 17. Nxf5 {[%clk 0:00:00]}  gxf5 {[%clk 0:00:00]} 18. Rxf5 {[%clk 0:00:00]}  Nc4 {[%clk 0:00:00]} 19. Bxc4 {[%clk 0:00:00]}  Qxc4 {[%clk 0:00:00]} 20. Qh5 {[%clk 0:00:00]}  e6 {[%clk 0:00:00]} 21. Rf4 {[%clk 0:00:00]}  Qd3 {[%clk 0:00:00]} 22. Raf1 {[%clk 0:00:00]}  Qxe3+ {[%clk 0:00:00]} 23. Kh1 {[%clk 0:00:00]}  e5 {[%clk 0:00:00]} 24. Rg4 {[%clk 0:00:00]}  Kh8 {[%clk 0:00:00]} 25. Rh4 {[%clk 0:00:00]}  h6 {[%clk 0:00:00]} 26. Qf5 {[%clk 0:00:00]}  e4 {[%clk 0:00:00]} 27. Rxe4 {[%clk 0:00:00]}  Qd3 {[%clk 0:00:00]} 28. Qh5 {[%clk 0:00:00]}  Rxc3 {[%clk 0:00:00]} 29. Rg4 {[%clk 0:00:00]}  Qxf1+ {[%clk 0:00:00]} 0-1


[Site "https://www.chess.com"]

[Event "Titled Tuesday Blitz August 16 Late 2022"]
[White "Fus, Jakub"]
[Black "Hajiyev, Kanan"]
[WhiteFideId "1193023"]
[BlackFideId "13404148"]
[WhiteElo "2411"]
[BlackElo "2131"]
[Result "1-0"]
[Round "01"]
[TimeControl "180+1"]
[Date "2022.08.18"]
[WhiteClock "0:00:00"]
[BlackClock "0:00:00"]

1. Nf3 {[%clk 0:00:00]}  d5 {[%clk 0:00:00]} 2. e3 {[%clk 0:00:00]}  c5 {[%clk 0:00:00]} 3. b3 {[%clk 0:00:00]}  Nf6 {[%clk 0:00:00]} 4. Bb2 {[%clk 0:00:00]}  g6 {[%clk 0:00:00]} 5. Bxf6 {[%clk 0:00:00]}  exf6 {[%clk 0:00:00]} 6. c4 {[%clk 0:00:00]}  Bg7 {[%clk 0:00:00]} 7. cxd5 {[%clk 0:00:00]}  f5 {[%clk 0:00:00]} 8. Nc3 {[%clk 0:00:00]}  O-O {[%clk 0:00:00]} 9. Bc4 {[%clk 0:00:00]}  a6 {[%clk 0:00:00]} 10. a4 {[%clk 0:00:00]}  Qa5 {[%clk 0:00:00]} 11. O-O {[%clk 0:00:00]}  Bxc3 {[%clk 0:00:00]} 12. dxc3 {[%clk 0:00:00]}  Qxc3 {[%clk 0:00:00]} 13. a5 {[%clk 0:00:00]}  Bd7 {[%clk 0:00:00]} 14. Qe2 {[%clk 0:00:00]}  Be8 {[%clk 0:00:00]} 15. Rfc1 {[%clk 0:00:00]}  Qf6 {[%clk 0:00:00]} 16. Rab1 {[%clk 0:00:00]}  Nd7 {[%clk 0:00:00]} 17. b4 {[%clk 0:00:00]}  Rc8 {[%clk 0:00:00]} 18. b5 {[%clk 0:00:00]}  Ne5 {[%clk 0:00:00]} 19. Nxe5 {[%clk 0:00:00]}  Qxe5 {[%clk 0:00:00]} 20. bxa6 {[%clk 0:00:00]}  bxa6 {[%clk 0:00:00]} 21. Bxa6 {[%clk 0:00:00]}  Ra8 {[%clk 0:00:00]} 22. Ra1 {[%clk 0:00:00]}  Qxd5 {[%clk 0:00:00]} 23. Bc4 {[%clk 0:00:00]}  Qe5 {[%clk 0:00:00]} 24. a6 {[%clk 0:00:00]}  Bc6 {[%clk 0:00:00]} 25. Ra5 {[%clk 0:00:00]}  Ra7 {[%clk 0:00:00]} 26. Rxc5 {[%clk 0:00:00]}  Qe4 {[%clk 0:00:00]} 27. Rxc6 {[%clk 0:00:00]} 1-0


[Site "https://www.chess.com"]

[Event "Titled Tuesday Blitz August 16 Late 2022"]
[White "Golubev, Mikhail"]
[Black "Sjugirov, Sanan"]
[WhiteFideId "14100983"]
[BlackFideId "4189302"]
[WhiteElo "2374"]
[BlackElo "2609"]
[Result "0-1"]
[Round "01"]
[TimeControl "180+1"]
[Date "2022.08.16"]
[WhiteClock "0:00:06"]
[BlackClock "0:00:25"]

1. e4 {[%clk 0:03:00]}  c6 {[%clk 0:02:56]} 2. Nf3 {[%clk 0:02:58]}  d5 {[%clk 0:02:55]} 3. Nc3 {[%clk 0:02:58]}  Bg4 {[%clk 0:02:55]} 4. h3 {[%clk 0:02:57]}  Bxf3 {[%clk 0:02:54]} 5. Qxf3 {[%clk 0:02:57]}  e6 {[%clk 0:02:55]} 6. d4 {[%clk 0:02:56]}  Nf6 {[%clk 0:02:30]} 7. Bd3 {[%clk 0:02:55]}  Bb4 {[%clk 0:02:28]} 8. e5 {[%clk 0:02:51]}  Nfd7 {[%clk 0:02:26]} 9. Qg4 {[%clk 0:02:47]}  g6 {[%clk 0:02:24]} 10. a3 {[%clk 0:02:38]}  Be7 {[%clk 0:02:21]} 11. Bh6 {[%clk 0:02:15]}  c5 {[%clk 0:02:16]} 12. f4 {[%clk 0:01:43]}  Nc6 {[%clk 0:02:05]} 13. dxc5 {[%clk 0:01:33]}  Nxc5 {[%clk 0:02:03]} 14. O-O-O {[%clk 0:01:26]}  Qa5 {[%clk 0:01:52]} 15. Kb1 {[%clk 0:00:55]}  a6 {[%clk 0:01:49]} 16. h4 {[%clk 0:00:50]}  b5 {[%clk 0:01:43]} 17. h5 {[%clk 0:00:38]}  O-O-O {[%clk 0:01:19]} 18. hxg6 {[%clk 0:00:21]}  hxg6 {[%clk 0:01:20]} 19. Bg5 {[%clk 0:00:21]}  Bxg5 {[%clk 0:01:12]} 20. Rxh8 {[%clk 0:00:18]}  Rxh8 {[%clk 0:01:11]} 21. Qxg5 {[%clk 0:00:18]}  Qd8 {[%clk 0:00:45]} 22. Qxd8+ {[%clk 0:00:15]}  Kxd8 {[%clk 0:00:43]} 23. Be2 {[%clk 0:00:13]}  Kc7 {[%clk 0:00:41]} 24. Bf3 {[%clk 0:00:11]}  Nd7 {[%clk 0:00:31]} 25. Bxd5 {[%clk 0:00:08]}  exd5 {[%clk 0:00:31]} 26. Nxd5+ {[%clk 0:00:08]}  Kc8 {[%clk 0:00:30]} 27. g4 {[%clk 0:00:06]}  Rh4 {[%clk 0:00:28]} 28. f5 {[%clk 0:00:06]}  Ncxe5 {[%clk 0:00:25]} 0-1


[Site "https://www.chess.com"]

[Event "Titled Tuesday Blitz August 16 Late 2022"]
[White "Gorodetzky, David"]
[Black "Melaugh, Shane"]
[WhiteFideId "2813416"]
[BlackFideId "2509580"]
[WhiteElo "2487"]
[BlackElo "1946"]
[Result "1-0"]
[Round "01"]
[TimeControl "180+1"]
[Date "2022.08.16"]
[WhiteClock "0:02:10"]
[BlackClock "0:01:24"]

1. d4 {[%clk 0:02:58]}  e6 {[%clk 0:02:59]} 2. e4 {[%clk 0:02:57]}  d5 {[%clk 0:02:59]} 3. Nd2 {[%clk 0:02:57]}  dxe4 {[%clk 0:02:58]} 4. Nxe4 {[%clk 0:02:58]}  Nf6 {[%clk 0:02:59]} 5. Nxf6+ {[%clk 0:02:56]}  gxf6 {[%clk 0:03:00]} 6. Nf3 {[%clk 0:02:56]}  Nc6 {[%clk 0:03:00]} 7. c4 {[%clk 0:02:53]}  Qd6 {[%clk 0:02:56]} 8. a3 {[%clk 0:02:43]}  b6 {[%clk 0:02:36]} 9. Be3 {[%clk 0:02:43]}  Bb7 {[%clk 0:02:36]} 10. Qa4 {[%clk 0:02:42]}  O-O-O {[%clk 0:02:34]} 11. c5 {[%clk 0:02:35]}  Qd5 {[%clk 0:02:07]} 12. Bc4 {[%clk 0:02:21]}  Qe4 {[%clk 0:02:01]} 13. O-O-O {[%clk 0:02:21]}  f5 {[%clk 0:01:44]} 14. Ng5 {[%clk 0:02:17]}  Qxg2 {[%clk 0:01:38]} 15. Rdg1 {[%clk 0:02:16]}  Qxg1+ {[%clk 0:01:37]} 16. Rxg1 {[%clk 0:02:16]}  Rd7 {[%clk 0:01:37]} 17. Nxf7 {[%clk 0:02:13]}  Rxf7 {[%clk 0:01:36]} 18. Bxe6+ {[%clk 0:02:14]}  Rd7 {[%clk 0:01:36]} 19. d5 {[%clk 0:02:15]}  Ne5 {[%clk 0:01:34]} 20. c6 {[%clk 0:02:12]}  Bd6 {[%clk 0:01:25]} 21. cxb7+ {[%clk 0:02:10]}  Kd8 {[%clk 0:01:24]} 22. b8=Q+ {[%clk 0:02:10]} 1-0


[Site "https://www.chess.com"]